bitfinex/quotes_SOLUSD_20250209
["timestamp","ask_amount","ask_price","bid_price","bid_amount"]
[1739115168709,0.063,200.53,200.49,3.4913]
[1739115169002,0.063,200.53,200.5,8.95590991]
[1739115169208,0.063,200.53,200.51,8.95590991]
[1739115170484,0.063,200.53,200.5,8.95590991]
[1739115170786,0.063,200.53,200.5,12.44700991]
[1739115170987,0.063,200.53,200.48,3.4914]
[1739115171192,9.01890991,200.53,200.48,3.4914]
[1739115171809,8.95590991,200.51,200.47,0.03]
[1739115173601,8.95590991,200.5,200.47,0.03]
[1739115174106,80.7,200.52,200.47,8.98590991]
[1739115175004,80.7,200.52,200.47,0.03]
[1739115175197,89.65590991,200.52,200.47,0.03]
[1739115175508,80.7,200.52,200.47,0.03]
[1739115175892,80.7,200.51,200.47,12.47760991]
[1739115176095,80.7,200.51,200.49,8.95590991]
[1739115176300,0.063,200.53,200.5,8.95590991]
[1739115176499,0.063,200.53,200.49,8.95590991]
[1739115178513,0.063,200.53,200.48,12.44730991]
[1739115178687,9.01890991,200.53,200.48,3.4914]
[1739115178886,8.95590991,200.52,200.48,3.4914]
[1739115179820,8.95590991,200.51,200.47,0.03]
[1739115179996,8.95590991,200.5,200.47,0.03]
[1739115180190,8.95590991,200.48,200.47,0.03]
[1739115181733,20.0,200.49,200.47,0.03]
[1739115181942,20.0,200.48,200.47,0.03]
[1739115182440,28.95590991,200.49,200.47,0.03]
[1739115183122,8.95590991,200.48,200.47,0.03]
[1739115183838,22.36775844,200.48,200.47,0.03]
[1739115184035,25.85935844,200.48,200.47,0.03]
[1739115184405,28.8380289,200.48,200.47,0.03]
[1739115185736,2.97867046,200.48,200.47,0.03]
[1739115185914,2.97867046,200.48,200.47,8.98590991]
[1739115187518,2.97867046,200.48,200.47,12.47760991]
[1739115188043,20.0,200.52,200.47,12.47760991]
[1739115188840,0.063,200.53,200.48,8.95590991]
[1739115189027,20.0,200.52,200.48,8.95590991]
[1739115189210,0.063,200.53,200.49,8.95590991]
[1739115189633,20.063,200.53,200.5,3.4912]
[1739115190022,0.063,200.53,200.5,3.4912]
[1739115190228,0.063,200.53,200.48,3.4914]
[1739115190627,0.063,200.53,200.48,12.44730991]
[1739115190840,80.7,200.52,200.47,8.98590991]
[1739115191017,89.65590991,200.52,200.47,0.03]
[1739115191218,8.95590991,200.51,200.47,3.5217]
[1739115191418,80.7,200.52,200.47,3.5217]
[1739115191840,89.65590991,200.52,200.47,0.03]
[1739115192036,80.7,200.52,200.47,0.03]
[1739115192945,80.763,200.52,200.47,0.03]
[1739115193119,80.763,200.52,200.47,8.98590991]
[1739115193320,80.763,200.52,200.48,8.95590991]
[1739115193837,80.763,200.52,200.48,12.44740991]
[1739115194544,80.763,200.52,200.47,0.03]
[1739115194727,80.763,200.52,200.47,3.5217]
[1739115196749,80.7,200.51,200.47,3.5217]
[1739115197053,8.95590991,200.48,200.47,0.03]
[1739115198237,25.34525489,200.48,200.47,0.03]
[1739115198445,20.0,200.45,200.37,3.4935]
[1739115198619,8.95590991,200.42,200.37,3.4935]
[1739115198819,8.95590991,200.41,200.37,3.4935]
[1739115199048,8.95590991,200.38,200.34,3.494]
[1739115199252,16.19809645,200.48,200.32,3.4942]
[1739115199253,8.95590991,200.37,200.32,3.4942]
[1739115199836,8.95590991,200.37,200.3,17.69260991]
[1739115199837,8.95590991,200.36,200.3,3.4946]
[1739115200152,8.95590991,200.39,200.32,8.95590991]
[1739115200323,8.95590991,200.4,200.34,3.494]
[1739115200521,8.95590991,200.42,200.35,8.95590991]
[1739115200737,8.95590991,200.39,200.34,3.494]
[1739115200935,8.95590991,200.37,200.3,8.95590991]
[1739115201351,8.95590991,200.35,200.29,3.4949]
[1739115203128,20.0,200.34,200.3,8.95590991]
[1739115203441,80.7,200.39,200.31,8.95590991]
[1739115203442,8.95590991,200.38,200.31,8.95590991]
[1739115204047,20.0,200.35,200.31,8.95590991]
[1739115204630,28.95590991,200.36,200.3,8.95590991]
[1739115204836,28.95590991,200.36,200.29,3.4949]
[1739115204837,89.65590991,200.35,200.29,3.4949]
[1739115205058,89.65590991,200.34,200.29,3.4949]
[1739115205235,89.65590991,200.33,200.28,0.03]
[1739115205554,89.65590991,200.33,200.28,3.525]
[1739115205731,80.7,200.33,200.31,0.03]
[1739115205933,80.7,200.33,200.31,8.98590991]
[1739115206751,80.7,200.33,200.32,8.95590991]
[1739115207061,80.7,200.38,200.32,12.45030991]
[1739115207246,80.7,200.38,200.37,8.95590991]
[1739115207557,1.25199659,200.43,200.37,8.95590991]
[1739115207558,80.7,200.43,200.37,8.95590991]
[1739115207728,81.92865664,200.43,200.37,8.95590991]
[1739115207928,80.7,200.43,200.37,8.95590991]
[1739115208128,80.7,200.43,200.38,8.95590991]
[1739115208657,80.7,200.43,200.33,0.74851114]
[1739115208839,80.7,200.43,200.42,3.4926]
[1739115209159,80.7,200.43,200.42,12.44850991]
[1739115209537,80.7,200.43,200.42,3.4926]
[1739115210264,80.7,200.43,200.39,14.34220408]
[1739115210570,80.7,200.43,200.4,3.4928]
[1739115211234,80.7,200.43,200.4,17.83500408]
[1739115211949,80.7,200.43,200.4,3.4928]
[1739115212559,80.7,200.43,200.4,17.83500408]
[1739115213360,80.7,200.49,200.42,14.34220408]
[1739115213567,80.7,200.49,200.45,14.34220408]
[1739115213864,80.7,200.49,200.44,14.34220408]
[1739115214958,80.7,200.49,200.43,14.34220408]
[1739115215641,80.7,200.49,200.44,3.4923]
[1739115216975,14.34220408,200.48,200.42,3.4926]
[1739115217145,34.34220408,200.46,200.4,3.4928]
[1739115217340,20.0,200.46,200.4,3.4928]
[1739115217563,20.0,200.46,200.4,17.83500408]
[1739115217755,20.0,200.46,200.4,17.86500408]
[1739115218661,20.0,200.46,200.41,14.34220408]
[1739115218862,80.763,200.49,200.43,14.34220408]
[1739115220152,80.763,200.49,200.42,14.34220408]
[1739115220464,14.34220408,200.48,200.41,17.83500408]
[1739115220663,14.34220408,200.46,200.4,0.03]
[1739115220845,34.34220408,200.46,200.4,3.5229]
[1739115221770,20.0,200.46,200.4,17.86510408]
[1739115223442,80.7,200.45,200.4,17.86510408]
[1739115223853,80.7,200.45,200.4,3.5229]
[1739115224059,80.7,200.44,200.4,3.5229]
[1739115224261,80.7,200.43,200.4,3.5229]
[1739115224564,80.7,200.42,200.4,0.03]
[1739115224767,14.34220408,200.41,200.4,0.03]
[1739115225347,27.75405261,200.41,200.4,0.03]
[1739115225860,31.24685261,200.41,200.4,0.03]
[1739115226448,27.75405261,200.41,200.4,0.03]
[1739115227158,31.24685261,200.41,200.4,0.03]
[1739115227360,17.83500408,200.41,200.32,3.4943]
[1739115227672,20.0,200.37,200.32,14.34220408]
[1739115228263,80.7,200.4,200.34,14.34220408]
[1739115228461,80.7,200.4,200.37,14.34220408]
[1739115228667,80.7,200.4,200.38,14.34220408]
[1739115228864,2.96912286,200.41,200.38,14.34220408]
[1739115229052,2.96912286,200.41,200.4,14.34220408]
[1739115229454,2.96912286,200.41,200.39,14.34220408]
[1739115229983,14.34220408,200.45,200.38,14.34220408]
[1739115230671,13.41184853,200.44,200.4,0.03]
[1739115232473,13.41184853,200.44,200.4,8.9953956]
[1739115234878,80.7,200.43,200.42,8.9653956]
[1739115235888,80.7,200.43,200.42,12.4579956]
[1739115237658,0.063,200.49,200.42,12.4579956]
[1739115237857,0.063,200.49,200.48,12.4569956]
[1739115240280,0.063,200.49,200.48,3.4916]
[1739115241269,0.063,200.49,200.46,3.4918]
[1739115241466,9.0283956,200.49,200.44,3.4923]
[1739115241672,0.063,200.49,200.44,12.4576956]
[1739115242382,0.063,200.49,200.45,8.9653956]
[1739115242881,0.063,200.49,200.44,12.4576956]
[1739115243292,13.47484853,200.49,200.44,3.4923]
[1739115243500,13.47484853,200.49,200.42,12.4577956]
[1739115243501,22.44024413,200.49,200.42,12.4577956]
[1739115243671,13.41184853,200.47,200.42,3.4924]
[1739115243870,22.37724413,200.47,200.42,3.4924]
[1739115244176,13.41184853,200.47,200.42,12.4577956]
[1739115244500,80.7,200.48,200.43,8.9653956]
[1739115245076,80.7,200.48,200.45,3.4921]
[1739115245494,80.7,200.48,200.46,8.9653956]
[1739115245694,80.7,200.48,200.45,12.4574956]
[1739115246191,80.7,200.48,200.45,3.4921]
[1739115246772,80.7,200.48,200.45,12.4574956]
[1739115250898,80.7,200.48,200.46,8.9653956]
[1739115251702,80.7,200.48,200.45,8.9653956]
[1739115252996,80.7,200.48,200.45,12.4573956]
[1739115255699,80.7,200.48,200.46,8.9653956]
[1739115256908,80.7,200.48,200.44,8.9653956]
[1739115257901,80.7,200.48,200.45,3.4921]
[1739115259703,80.7,200.48,200.4,0.03]
[1739115259704,80.7,200.48,200.43,8.9653956]
[1739115259909,22.37724413,200.47,200.41,3.4926]
[1739115260806,13.41184853,200.45,200.41,3.4926]
[1739115261006,13.41184853,200.45,200.4,0.03]
[1739115261493,13.41184853,200.45,200.4,8.9953956]
[1739115261888,80.7,200.46,200.42,8.9653956]
[1739115262295,80.7,200.46,200.41,8.9653956]
[1739115263710,13.41184853,200.45,200.4,8.9953956]
[1739115264223,80.7,200.46,200.41,8.9653956]
[1739115264519,80.7,200.46,200.45,8.9653956]
[1739115266113,80.7,200.46,200.45,12.4574956]
[1739115267945,0.063,200.49,200.45,12.4574956]
[1739115268110,0.063,200.49,200.48,28.9653956]
[1739115268317,0.0001,200.49,200.48,37.9307912]
[1739115268491,0.0001,200.49,200.48,29.71334565]
[1739115270117,0.0001,200.49,200.48,42.17034125]
[1739115270326,0.0001,200.49,200.48,43.42132125]
[1739115270501,0.063,200.54,200.53,20.0]
[1739115270700,0.063,200.57,200.53,29.71312911]
[1739115271003,0.063,200.57,200.56,8.9653956]
[1739115272034,0.063,200.57,200.56,12.4555956]
[1739115273305,0.063,200.57,200.54,3.4904]
[1739115273630,0.063,200.57,200.56,8.9653956]
[1739115275132,0.063,200.57,200.55,8.9653956]
[1739115275306,0.063,200.57,200.55,3.4902]
[1739115275502,0.063,200.57,200.56,8.9653956]
[1739115277101,0.0001,200.57,200.56,9.96405406]
[1739115282653,0.0001,200.57,200.56,16.44918119]
[1739115283438,0.0001,200.57,200.56,16.19820119]
[1739115283651,0.0001,200.57,200.56,15.45052273]
[1739115284315,0.0001,200.57,200.56,8.9653956]
[1739115286120,0.0001,200.57,200.56,13.20318545]
[1739115286538,0.0001,200.58,200.57,0.25098]
[1739115286749,0.0001,200.58,200.57,38.1817712]
[1739115286955,0.0001,200.58,200.57,39.1817712]
[1739115287157,0.0001,200.58,200.57,30.2163756]
[1739115287453,0.063,200.63,200.57,40.1817712]
[1739115287664,0.063,200.63,200.62,12.4544956]
[1739115290245,0.063,200.63,200.62,3.4891]
[1739115290468,0.063,200.63,200.62,32.4544956]
[1739115291354,0.063,200.63,200.62,12.4544956]
[1739115291661,0.063,200.63,200.62,3.4891]
[1739115292438,0.063,200.63,200.62,12.4544956]
[1739115294363,0.063,200.63,200.62,3.4891]
[1739115294943,0.063,200.63,200.61,3.4893]
[1739115298861,0.063,200.63,200.61,12.4546956]
[1739115299168,0.063,200.63,200.62,8.9653956]
[1739115299550,0.063,200.63,200.61,12.4546956]
[1739115300577,0.063,200.63,200.59,8.9653956]
[1739115300742,0.063,200.63,200.58,8.9653956]
[1739115301142,0.063,200.63,200.59,8.9653956]
[1739115302869,0.063,200.63,200.6,3.4895]
[1739115303976,89.6653956,200.62,200.57,0.03]
[1739115304146,89.6653956,200.61,200.57,3.5199]
[1739115304349,80.7,200.61,200.57,3.5199]
[1739115305982,80.7,200.61,200.6,5.72744158]
[1739115306975,80.7,200.61,200.58,5.72744158]
[1739115307181,80.2,200.61,200.57,3.5199]
[1739115307345,85.92744158,200.61,200.57,3.5199]
[1739115307678,93.61184853,200.6,200.57,0.03]
[1739115307862,5.72744158,200.58,200.57,0.03]
[1739115308455,95.14214853,200.6,200.57,0.03]
[1739115308456,5.72744158,200.59,200.57,0.03]
[1739115308656,81.7303,200.6,200.57,0.03]
[1739115309165,80.2,200.6,200.58,5.72744158]
[1739115309358,0.063,200.63,200.57,0.03]
[1739115309359,0.063,200.63,200.59,5.72744158]
[1739115309560,0.063,200.63,200.6,8.94580359]
[1739115309763,0.063,200.63,200.59,8.94580359]
[1739115309952,0.063,200.63,200.58,8.94580359]
[1739115310153,0.063,200.63,200.59,8.94580359]
[1739115310486,0.063,200.63,200.58,8.94580359]
[1739115310657,0.063,200.63,200.59,8.94580359]
[1739115312063,0.063,200.63,200.6,3.4895]
[1739115312663,8.94580359,200.61,200.58,3.4898]
[1739115313779,8.94580359,200.6,200.57,0.03]
[1739115313990,8.94580359,200.58,200.57,0.03]
[1739115315267,8.94580359,200.6,200.57,0.03]
[1739115315471,22.35765212,200.61,200.57,0.03]
[1739115315655,8.94580359,200.6,200.57,0.03]
[1739115316782,22.35765212,200.59,200.57,0.03]
[1739115316993,22.35765212,200.58,200.57,0.03]
[1739115317573,13.41184853,200.58,200.57,0.03]
[1739115321086,22.35765212,200.58,200.57,0.03]
[1739115322073,25.33560961,200.58,200.57,0.03]
[1739115325296,28.82540961,200.58,200.57,0.03]
[1739115325499,25.33560961,200.58,200.57,0.03]
[1739115328023,28.82540961,200.58,200.57,0.03]
[1739115328176,30.37890961,200.58,200.57,0.03]
[1739115330585,20.0,200.53,200.42,10.50580359]
[1739115330804,8.94580359,200.47,200.43,3.4924]
[1739115331485,8.94580359,200.46,200.43,3.4924]
[1739115331684,8.94580359,200.44,200.4,3.523]
[1739115331913,8.94580359,200.45,200.4,3.523]
[1739115333423,8.94580359,200.44,200.4,0.03]
[1739115333623,80.7,200.46,200.4,0.03]
[1739115333624,8.94580359,200.42,200.4,0.03]
[1739115333805,8.94580359,200.43,200.4,0.03]
[1739115334003,80.7,200.42,200.4,0.03]
[1739115334304,80.7,200.41,200.4,0.03]
[1739115334927,89.64580359,200.41,200.4,0.03]
[1739115335425,103.05765212,200.41,200.4,0.03]
[1739115335838,80.7,200.41,200.4,0.03]
[1739115336622,89.64580359,200.41,200.4,0.03]
[1739115336933,103.05765212,200.41,200.4,0.03]
[1739115339411,22.35765212,200.41,200.4,0.03]
[1739115341733,31.30345571,200.41,200.4,0.03]
[1739115341933,34.79625571,200.41,200.4,0.03]
[1739115342628,35.79625571,200.41,200.4,0.03]
[1739115343513,37.03171123,200.41,200.4,0.03]
[1739115348338,20.0,200.38,200.37,0.03]
[1739115348537,28.94580359,200.38,200.37,0.03]
[1739115348837,20.0,200.38,200.37,0.03]
[1739115349144,8.94580359,200.4,200.37,0.03]
[1739115349307,13.41184853,200.39,200.37,0.03]
[1739115349921,8.94580359,200.38,200.37,0.03]
[1739115350659,8.94580359,200.4,200.37,0.03]
[1739115351053,8.94580359,200.41,200.37,0.03]
[1739115351369,3.4921,200.46,200.37,0.03]
[1739115351370,8.94580359,200.45,200.38,8.94580359]
[1739115351547,89.64580359,200.46,200.39,8.94580359]
[1739115351749,8.94580359,200.45,200.38,8.94580359]
[1739115352446,8.94580359,200.43,200.37,0.03]
[1739115352647,8.94580359,200.42,200.37,3.5235]
[1739115353072,8.94580359,200.41,200.37,3.5235]
[1739115353250,8.94580359,200.42,200.37,3.5235]
[1739115353450,22.35765212,200.45,200.38,8.94580359]
[1739115353868,80.7,200.46,200.4,8.94580359]
[1739115355070,80.7,200.46,200.41,3.4928]
[1739115355781,8.94580359,200.44,200.39,3.493]
[1739115356249,22.35765212,200.45,200.39,3.493]
[1739115356454,13.41184853,200.45,200.39,12.43880359]
[1739115357179,80.7,200.44,200.39,12.43880359]
[1739115358275,80.7,200.44,200.39,21.17170359]
[1739115358784,80.7,200.44,200.39,12.2259]
[1739115360377,80.7,200.44,200.39,12.2559]
[1739115361891,89.64580359,200.44,200.39,3.523]
[1739115362987,8.94580359,200.4,200.39,0.03]
[1739115363778,8.94580359,200.41,200.39,0.03]
[1739115364275,8.94580359,200.4,200.39,0.03]
[1739115365575,22.35765212,200.4,200.39,0.03]
[1739115373688,13.41184853,200.39,200.37,0.03]
[1739115373883,39.1545219,200.38,200.37,0.03]
[1739115374779,42.13009033,200.38,200.37,0.03]
[1739115374968,2.97556843,200.38,200.37,0.03]
[1739115375691,8.7182418,200.38,200.37,0.03]
[1739115376091,22.13009033,200.38,200.37,0.03]
[1739115376293,19.1545219,200.38,200.37,0.03]
[1739115377584,22.38396977,200.38,200.37,0.03]
[1739115379194,8.97212124,200.38,200.37,0.03]
[1739115379870,11.95092725,200.38,200.37,0.03]
[1739115382277,22.97880601,200.38,200.37,0.03]
[1739115382578,31.95092725,200.38,200.37,0.03]
[1739115384896,31.95092725,200.38,200.32,3.0544]
[1739115385278,2.97880601,200.38,200.35,8.97212124]
[1739115385592,8.97212124,200.42,200.35,8.97212124]
[1739115386404,13.41184853,200.41,200.35,8.97212124]
[1739115386602,13.41184853,200.35,200.31,0.03]
[1739115386775,8.97212124,200.35,200.31,0.03]
[1739115388200,80.7,200.37,200.34,8.97212124]
[1739115388402,0.063,200.44,200.37,1.504]
[1739115388571,22.44696977,200.44,200.37,10.47612124]
[1739115388895,22.44696977,200.44,200.37,1.504]
[1739115389092,22.44696977,200.44,200.37,10.47612124]
[1739115389599,22.44696977,200.44,200.38,3.4933]
[1739115389803,80.7,200.43,200.38,12.46542124]
[1739115389992,80.7,200.43,200.39,8.97212124]
[1739115390197,0.063,200.44,200.42,8.97212124]
[1739115390374,0.063,200.44,200.41,8.97212124]
[1739115391416,0.063,200.44,200.43,8.97212124]
[1739115392215,0.063,200.44,200.43,15.50202124]
[1739115392386,0.0001,200.44,200.43,17.00602124]
[1739115392988,80.7,200.55,200.46,20.0]
[1739115393287,80.7,200.55,200.49,8.97212124]
[1739115393913,80.7,200.55,200.51,8.97212124]
[1739115394518,80.7,200.55,200.52,8.97212124]
[1739115396297,80.7,200.55,200.53,3.4907]
[1739115397206,9.03512124,200.6,200.53,12.46282124]
[1739115397808,22.38396977,200.59,200.53,3.4907]
[1739115398008,8.97212124,200.58,200.53,3.4907]
[1739115398214,13.47484853,200.57,200.51,20.15562124]
[1739115398390,22.44696977,200.57,200.51,11.1835]
[1739115398712,8.97212124,200.55,200.51,3.4909]
[1739115399415,0.063,200.57,200.49,12.22]
[1739115399611,0.063,200.57,200.53,8.97212124]
[1739115399816,22.44696977,200.57,200.5,8.97212124]
[1739115400378,0.063,200.57,200.52,8.97212124]
[1739115400602,0.063,200.57,200.53,8.97212124]
[1739115401109,0.063,200.57,200.52,8.97212124]
[1739115401703,0.063,200.57,200.53,3.4907]
[1739115403014,8.97212124,200.55,200.48,12.46372124]
[1739115403209,9.03512124,200.57,200.5,8.97212124]
[1739115403513,8.97212124,200.56,200.49,8.97212124]
[1739115404513,8.97212124,200.55,200.49,8.97212124]
[1739115405113,8.97212124,200.55,200.48,8.97212124]
[1739115405609,0.063,200.57,200.47,12.46382124]
[1739115405610,8.97212124,200.54,200.47,12.46382124]
[1739115405813,8.97212124,200.49,200.45,3.4919]
[1739115405995,8.97212124,200.47,200.42,3.4926]
[1739115406195,89.67212124,200.48,200.42,3.4926]
[1739115407116,89.67212124,200.47,200.42,3.4926]
[1739115408610,8.97212124,200.45,200.4,3.4928]
[1739115408810,80.7,200.44,200.4,3.4928]
[1739115409213,89.67212124,200.44,200.38,3.4931]
[1739115409603,80.7,200.44,200.43,8.97212124]
[1739115410916,80.7,200.44,200.43,12.46452124]
[1739115413519,89.67212124,200.5,200.43,12.46452124]
[1739115413721,80.7,200.49,200.43,12.46452124]
[1739115414102,22.38396977,200.48,200.41,8.97212124]
[1739115414425,8.97212124,200.46,200.39,8.97212124]
[1739115414600,8.97212124,200.47,200.4,8.97212124]
[1739115416225,8.97212124,200.47,200.41,3.4928]
[1739115417604,13.41184853,200.46,200.41,3.4928]
[1739115417909,8.97212124,200.45,200.41,3.4928]
[1739115418107,80.7,200.44,200.41,3.4928]
[1739115418312,89.67212124,200.44,200.41,3.4928]
[1739115418728,89.67212124,200.44,200.38,3.4933]
[1739115418929,80.7,200.43,200.38,3.4933]
[1739115419108,89.67212124,200.43,200.38,3.4933]
[1739115419421,80.7,200.43,200.38,3.4933]
[1739115419726,80.7,200.43,200.41,0.03]
[1739115423036,89.67212124,200.43,200.41,0.03]
[1739115424714,80.7,200.43,200.41,0.03]
[1739115424912,80.7,200.43,200.41,9.00212124]
[1739115425207,80.763,200.48,200.42,8.97212124]
[1739115425412,80.763,200.48,200.44,8.97212124]
[1739115426431,80.763,200.48,200.45,3.4921]
[1739115426631,80.763,200.48,200.46,8.97212124]
[1739115427629,80.763,200.48,200.47,8.97212124]
[1739115428542,80.763,200.48,200.47,12.46382124]
[1739115428915,0.063,200.48,200.47,12.46382124]
[1739115429115,0.063,200.48,200.47,13.33722767]
[1739115430139,0.063,200.48,200.47,13.21173767]
[1739115430320,0.063,200.48,200.47,13.33722767]
[1739115430946,0.063,200.48,200.47,12.46382124]
[1739115432533,0.063,200.48,200.47,12.58931124]
[1739115432839,0.063,200.48,200.47,12.46382124]
[1739115433822,0.063,200.48,200.47,8.97212124]
[1739115434642,0.063,200.48,200.47,12.46382124]
[1739115435941,0.063,200.48,200.47,12.58931124]
[1739115438623,0.063,200.48,200.47,12.46382124]
[1739115442743,0.063,200.48,200.46,3.4919]
[1739115444135,0.063,200.48,200.43,17.70312124]
[1739115445364,0.063,200.48,200.45,3.4921]
[1739115446336,0.063,200.48,200.44,12.46442124]
[1739115446649,0.063,200.48,200.45,8.97212124]
[1739115447523,0.063,200.48,200.47,8.97212124]
[1739115448547,0.063,200.48,200.47,3.4917]
[1739115449762,9.03512124,200.48,200.41,9.00212124]
[1739115449955,9.03512124,200.48,200.42,3.4926]
[1739115451344,8.97212124,200.46,200.41,0.03]
[1739115451549,8.97212124,200.45,200.41,0.03]
[1739115452049,8.97212124,200.45,200.41,3.5228]
[1739115452553,8.97212124,200.45,200.41,0.03]
[1739115452860,89.67212124,200.44,200.41,0.03]
[1739115453073,8.97212124,200.42,200.41,0.03]
[1739115456570,80.7,200.44,200.41,0.03]
[1739115457972,22.38396977,200.43,200.41,0.03]
[1739115458158,8.97212124,200.42,200.41,0.03]
[1739115458571,22.38396977,200.43,200.41,0.03]
[1739115459587,89.67212124,200.44,200.41,0.03]
[1739115460087,80.7,200.44,200.41,0.03]
[1739115462446,80.7,200.44,200.41,9.00212124]
[1739115463292,80.7,200.44,200.42,3.4926]
[1739115463649,80.7,200.44,200.41,0.03]
[1739115463966,89.67212124,200.44,200.41,0.03]
[1739115464789,8.97212124,200.42,200.41,0.03]
[1739115466086,103.08396977,200.43,200.41,0.03]
[1739115469988,80.7,200.42,200.41,0.03]
[1739115470784,103.08396977,200.42,200.41,0.03]
[1739115471160,94.11184853,200.42,200.41,0.03]
[1739115471954,80.7,200.42,200.41,0.03]
[1739115473283,80.7,200.42,200.41,3.5228]
[1739115477091,80.7,200.42,200.41,12.49492124]
[1739115478665,0.063,200.44,200.41,9.00212124]
[1739115478865,0.063,200.44,200.43,8.97212124]
[1739115479596,0.063,200.44,200.43,5.7326426]
[1739115480695,0.063,200.44,200.43,9.2250426]
[1739115481579,0.063,200.44,200.43,32.44856407]
[1739115483290,0.063,200.44,200.43,33.19665701]
[1739115486217,0.063,200.44,200.43,32.44856407]
[1739115487414,8.95616407,200.5,200.43,32.44856407]
[1739115487586,80.7,200.49,200.43,32.44856407]
[1739115488317,80.7,200.49,200.44,8.95616407]
[1739115488517,80.7,200.49,200.45,8.95616407]
[1739115489612,80.7,200.49,200.44,8.95616407]
[1739115489816,80.7,200.49,200.43,32.44856407]
[1739115490117,80.7,200.49,200.44,8.95616407]
[1739115490800,80.7,200.48,200.45,3.4921]
[1739115494427,80.7,200.48,200.45,8.95616407]
[1739115494714,0.063,200.49,200.47,8.95616407]
[1739115494879,0.063,200.49,200.44,12.97123807]
[1739115494880,0.063,200.49,200.48,8.95616407]
[1739115495725,0.063,200.49,200.48,9.7040913]
[1739115497018,0.063,200.49,200.48,13.1956913]
[1739115498815,0.063,200.49,200.48,13.3211813]
[1739115499199,0.063,200.49,200.48,13.1956913]
[1739115503645,0.063,200.57,200.48,13.1956913]
[1739115503646,0.063,200.57,200.51,20.0]
[1739115503809,0.063,200.57,200.55,5.72924806]
[1739115504743,0.063,200.57,200.54,5.72924806]
[1739115506346,0.063,200.57,200.52,5.72924806]
[1739115506935,0.063,200.57,200.53,5.72924806]
[1739115507126,0.063,200.57,200.54,5.72924806]
[1739115507442,0.063,200.57,200.55,5.72924806]
[1739115508554,0.063,200.57,200.55,9.21944806]
[1739115508744,0.063,200.57,200.55,3.4902]
[1739115509737,0.063,200.57,200.54,5.72924806]
[1739115509938,0.063,200.57,200.54,9.21974806]
[1739115514649,80.763,200.57,200.54,9.21974806]
[1739115516264,80.763,200.57,200.55,5.72924806]
[1739115516640,80.763,200.57,200.55,9.21954806]
[1739115518169,80.763,200.57,200.54,5.72924806]
[1739115519165,80.763,200.57,200.55,5.72924806]
[1739115519884,86.42924806,200.56,200.5,5.72924806]
[1739115520164,5.72924806,200.54,200.49,3.4914]
[1739115520368,80.7,200.56,200.52,5.72924806]
[1739115520864,80.7,200.56,200.51,5.72924806]
[1739115521274,1.5133,200.55,200.49,5.72924806]
[1739115521571,7.24254806,200.55,200.48,5.75924806]
[1739115521762,1.5133,200.55,200.49,5.72924806]
[1739115521965,1.5133,200.55,200.49,9.22064806]
[1739115522342,1.5133,200.55,200.51,5.72924806]
[1739115522971,80.7,200.56,200.54,5.72924806]
[1739115523281,80.7,200.56,200.55,5.72924806]
[1739115525467,80.7,200.56,200.54,5.72924806]
[1739115525657,80.7,200.56,200.53,5.72924806]
[1739115527079,80.7,200.56,200.51,5.72924806]
[1739115527260,80.7,200.56,200.5,9.22044806]
[1739115529182,5.72924806,200.55,200.5,3.4912]
[1739115530686,5.72924806,200.55,200.49,0.03]
[1739115530983,5.72924806,200.55,200.49,3.5214]
[1739115531480,5.72924806,200.53,200.49,3.5214]
[1739115532389,80.7,200.52,200.49,0.03]